fUSD/lending_fUSD_20240115
["ID","MTS","AMOUNT","RATE_DAILY","PERIOD"]
[311670161,1705303844452,-1014.17843435,0.00023288,2]
[311670162,1705303844462,-1014.17843435,0.00023288,2]
[311670163,1705303844473,-1014.17843435,0.00023288,2]
[311670164,1705303844482,-1014.17843435,0.00023288,2]
[311670165,1705303844491,-1014.17843435,0.00023288,2]
[311670166,1705303844501,-399.62195391,0.00023288,2]
[311670167,1705303844510,-153.14729599,0.0002331,2]
[311670168,1705303844520,-150.93,0.00023414,2]
[311670169,1705303844532,-150.93,0.00023543,2]
[311670170,1705303844541,-1207.48027188,0.00023586,2]
[311670171,1705303844552,-1811.98105275,0.00023598,3]
[311670172,1705303844562,-150.93,0.00023672,2]
[311670173,1705303844574,-150.93,0.000238,2]
[311670174,1705303844584,-387.11,0.0002392,2]
[311670175,1705303844595,-150.93,0.00023929,2]
[311670176,1705303844605,-351.93999958,0.00023999,2]
[311670177,1705303844616,-283.90144478,0.00024,2]
[311670178,1705303844626,-150.93,0.00024057,2]
[311670179,1705303844637,-159.18,0.00024201,2]
[311670180,1705303844647,-174.24,0.00024337,2]
[311670181,1705303844658,-150.0,0.00024375,2]
[311670182,1705303844671,-1029.0,0.00024375,2]
[311670183,1705303844680,-1242.622,0.00024375,2]
[311670184,1705303844690,-1241.26,0.00024375,2]
[311670185,1705303844699,-424.956,0.00024375,2]
[311670186,1705303844710,-426.0,0.00024375,2]
[311670187,1705303844719,-1932.0,0.00024375,2]
[311670188,1705303844729,-3736.0,0.000244,2]
[311670189,1705303844738,-1207.48027188,0.00024471,2]
[311670190,1705303844749,-508.704,0.00024473,2]
[311670191,1705303844759,-319.864,0.00024473,2]
[311670192,1705303844769,-277.794,0.00024473,2]
[311670193,1705303844779,-874.81,0.00024473,2]
[311670194,1705303844789,-1411.487,0.00024473,2]
[311670195,1705303844798,-949.846,0.00024473,2]
[311670196,1705303844809,-3070.791,0.00024473,2]
[311670197,1705303844819,-19692.0,0.00024473,2]
[311670198,1705303844828,-4172.0,0.00024473,2]
[311670199,1705303844838,-2923.338,0.00024473,2]
[311670200,1705303844847,-6241.838,0.00024473,2]
[311670201,1705303844857,-2283.44,0.00024473,2]
[311670202,1705303844866,-3135.86,0.00024473,2]
[311670203,1705303844876,-225.142,0.00024473,2]
[311670204,1705303844886,-455.387,0.00024473,2]
[311670205,1705303844895,-839.0,0.00024473,2]
[311670206,1705303844905,-259.27,0.00024559,2]
[311670207,1705303844915,-152.51302001,0.000246,2]
[311670208,1705303844925,-1521.85998238,0.000246,2]
[311670209,1705303844935,-238.3035687,0.000246,2]
[311670210,1705303844944,-431.67022248,0.000246,2]
[311670211,1705303844954,-153.14729599,0.000246,2]
[311670212,1705303844963,-150.61,0.00024645,2]
[311670213,1705303844973,-250.0,0.00024658,2]
[311670214,1705303844983,-513.76,0.00024675,2]
[311670215,1705303844992,-154.69,0.00024692,2]
[311670216,1705303845002,-43215.0,0.000247,2]
[311670217,1705303845012,-500.0,0.000247,2]
[311670218,1705303845021,-1286134.18493747,0.00024748,2]
[311670219,1705303845041,-2031.06692803,0.00024748,2]
[311670220,1705303845053,-463.26951091,0.00024748,2]
[311670221,1705303845065,-1120.75474578,0.00024748,2]
[311670222,1705303845123,-388.39049616,0.00024748,2]
[311670223,1705303845137,-915.35175188,0.00024748,2]
[311670227,1705303846232,-300.0,0.00024748,2]
[311670228,1705303846291,-997.6565351,0.00024748,2]
[311670229,1705303846303,-1412.60118427,0.00024748,2]
[311670230,1705303846314,-323.15518711,0.00024748,2]
[311670231,1705303846327,-705.11719223,0.00024748,2]
[311670232,1705303846341,-360.4750001,0.00024748,2]
[311670233,1705303846355,-2151.0,0.00024748,2]
[311670234,1705303846366,-2031.00261675,0.00024748,2]
[311670235,1705303846386,-342.01478654,0.00024748,2]
[311670236,1705303846398,-3717.25421335,0.00024748,2]
[311670237,1705303846544,-2581.55187985,0.00024748,2]
[311670238,1705303846635,-22620.97509184,0.00024748,2]
[311670239,1705303846648,-35048.7527446,0.00024748,2]
[311670242,1705303846660,-659.879398,0.00024748,2]
[311670244,1705303846676,-319.290005,0.00024748,2]
[311670246,1705303846687,-621.7494999,0.00024748,2]
[311670248,1705303846699,-432.27653367,0.00024748,2]
[311670250,1705303846711,-404.04653892,0.00024748,2]
[311670254,1705303909824,2611.766,0.00022006,2]
[311670255,1705303926230,732.8103808,0.00021,2]
[311670256,1705303935488,283.07357979,0.00022006,2]
[311670257,1705303944227,590.01141518,0.00021,2]
[311670258,1705303946430,361.01193029,0.00022006,2]
[311670259,1705303952896,288.16026452,0.00022006,2]
[311670260,1705303960342,360.31402993,0.00022006,2]
[311670261,1705303989613,419.70426018,0.0002179,2]
[311670262,1705304007610,421.63311079,0.0002179,2]
[311670263,1705304022858,283.36,0.00021118,2]
[311670264,1705304075428,262.257184,0.00022021,2]
[311670265,1705304164217,202.0,0.00021613,2]
[311670266,1705304418441,1050.0,0.00022005,2]
[311670267,1705304496452,269.19,0.00021268,2]
[311670268,1705304525050,315.43910216,0.00024748,30]
[311670269,1705304526280,309.05240541,0.00024748,28]
[311670270,1705304574961,160.30976192,0.00022044,2]
[311670271,1705304734666,-394.95584771,0.00022132,2]
[311670272,1705304734687,-5692.02220698,0.00022143,2]
[311670273,1705304734709,-958.9625,0.00022144,2]
[311670274,1705304734731,-5898.6355,0.00022144,2]
[311670275,1705304734752,-1169.3422358,0.00022245,2]
[311670276,1705304735031,-450.0,0.00022246,2]
[311670277,1705304735054,-3843.19,0.00022288,2]
[311670278,1705304735076,-516.35,0.00022313,2]
[311670279,1705304735097,-150.0,0.00022411,2]
[311670280,1705304735119,-1007.82347343,0.00022438,2]
[311670281,1705304735140,-494.14360933,0.00022471,2]
[311670282,1705304735162,-211.07923828,0.00022496,2]
[311670283,1705304735184,-319.62,0.00022536,2]
[311670284,1705304735207,-150.99,0.00022537,2]
[311670285,1705304735228,-499.99,0.00022537,2]
[311670286,1705304735251,-691.74,0.0002257,2]
[311670287,1705304735275,-160.30976186,0.00022574,2]
[311670288,1705304735297,-7862.559,0.000226,2]
[311670289,1705304735319,-1941.4081,0.000226,2]
[311670290,1705304735341,-832.75806175,0.00022699,2]
[311670291,1705304735364,-156.01,0.00022722,2]
[311670292,1705304884108,202.0,0.00022172,2]
[311670293,1705304902915,159.06,0.00022968,2]
[311670303,1705304953268,255.73,0.00020832,2]
[311670304,1705304977102,2000.0,0.0002275,2]
[311670305,1705305002335,394.5,0.00022976,2]
[311670306,1705305004351,500.0,0.00022976,2]
[311670307,1705305011391,250.0,0.000205,2]
[311670308,1705305022062,250.0,0.00022953,2]
[311670309,1705305026497,394.95584771,0.00022952,2]
[311670312,1705305031600,-553.39,0.00023006,2]
[311670313,1705305031609,-156.01,0.00023046,2]
[311670314,1705305031623,-255.73,0.00023096,2]
[311670315,1705305031631,-3374.6065663,0.00023139,2]
[311670316,1705305031659,-466.63503773,0.00023139,2]
[311670317,1705305031713,-1727.96,0.00023139,2]
[311670318,1705305031724,-122.82060295,0.00023139,2]
[311670319,1705305031733,-1405.00353093,0.0002314,2]
[311670320,1705305031742,-694.41583412,0.00023149,2]
[311670332,1705305037423,-7066.91530432,0.00023149,2]
[311670333,1705305038331,-395.2299961,0.00023149,2]
[311670334,1705305038342,-544.38170658,0.00023149,2]
[311670335,1705305038354,-534.21154657,0.00023149,2]
[311670336,1705305038460,-542.47932145,0.00023149,2]
[311670337,1705305038472,-14122.36629086,0.00023149,2]
[311670338,1705305038481,-897.52,0.00023157,2]
[311670339,1705305038490,-387.23,0.00023161,2]
[311670340,1705305038499,-154.42,0.00023166,2]
[311670341,1705305038509,-499.99,0.00023166,2]
[311670342,1705305038518,-350.20830638,0.00023288,2]
[311670343,1705305038527,-159.71,0.0002331,2]
[311670344,1705305038536,-156.01,0.00023371,2]
[311670345,1705305038546,-161.51,0.00023408,2]
[311670346,1705305038554,-1405.00353093,0.00023462,2]
[311670347,1705305038564,-1405.00353093,0.0002363,2]
[311670348,1705305038574,-1007.82347343,0.00023646,2]
[311670349,1705305038582,-156.01,0.00023696,2]
[311670350,1705305038593,-3169.18338169,0.00023746,2]
[311670351,1705305038602,-159.71,0.00023918,2]
[311670352,1705305038611,-394.5,0.00023954,2]
[311670353,1705305038620,-156.01,0.0002402,2]
[311670354,1705305038629,-1405.00353093,0.0002404,2]
[311670355,1705305038638,-1405.00353093,0.00024207,2]
[311670356,1705305038647,-408.60358709,0.00024299,2]
[311670357,1705305038656,-16819.96566229,0.000243,2]
[311670358,1705305038669,-7316.09580236,0.000243,2]
[311670359,1705305038680,-3946.44737005,0.000243,2]
[311670360,1705305038704,-5918.37160815,0.000243,2]
[311670361,1705305038716,-8707.95527953,0.000243,2]
[311670362,1705305038727,-398.24876264,0.000243,2]
[311670363,1705305038752,-69173.12729493,0.000243,2]
[311670364,1705305038763,-13726.92838059,0.000243,2]
[311670365,1705305038787,-1324.89532061,0.000243,2]
[311670366,1705305038800,-28564.41161885,0.000243,2]
[311670367,1705305038809,-156.01,0.00024345,2]
[311670368,1705305038819,-38894.0,0.000244,2]
[311670369,1705305038829,-270.33,0.00024434,2]
[311670370,1705305038838,-150.0,0.00024444,2]
[311670371,1705305038848,-150.0,0.00024448,2]
[311670372,1705305038858,-300.0,0.0002445,2]
[311670373,1705305038868,-150.0,0.00024451,2]
[311670374,1705305038877,-150.0,0.00024452,2]
[311670375,1705305038885,-150.0,0.00024455,2]
[311670376,1705305038895,-150.0,0.00024458,2]
[311670377,1705305038904,-150.0,0.00024458,2]
[311670378,1705305038913,-150.0,0.0002446,2]
[311670379,1705305038923,-150.0,0.00024461,2]
[311670380,1705305038932,-1500.0,0.00024462,2]
[311670381,1705305038941,-150.0,0.00024462,2]
[311670382,1705305038950,-150.0,0.00024462,2]
[311670383,1705305038959,-150.0,0.00024463,2]
[311670384,1705305038969,-150.99064993,0.00024469,2]
[311670385,1705305038979,-150.0,0.00024481,2]
[311670386,1705305038988,-150.0,0.00024481,2]
[311670387,1705305038997,-150.0,0.00024482,2]
[311670388,1705305039006,-150.0,0.00024489,2]
[311670389,1705305039015,-1500.0,0.00024491,2]
[311670390,1705305039025,-1500.0,0.00024493,2]
[311670391,1705305039034,-150.0,0.00024495,2]
[311670392,1705305039044,-150.0,0.00024497,2]
[311670393,1705305039053,-150.0,0.00024503,2]
[311670394,1705305039062,-150.0,0.00024504,2]
[311670395,1705305039072,-150.0,0.00024506,2]
[311670396,1705305039081,-150.0,0.00024507,2]
[311670397,1705305039090,-150.0,0.00024508,2]
[311670398,1705305039100,-150.0,0.0002451,2]
[311670399,1705305039109,-1500.0,0.00024511,2]
[311670400,1705305039118,-1500.0,0.00024512,2]
[311670401,1705305039127,-150.0,0.00024514,2]
[311670402,1705305039136,-150.0,0.00024518,2]
[311670403,1705305039145,-150.0,0.0002452,2]
[311670404,1705305039154,-940.68,0.00024523,2]
[311670405,1705305039163,-813.27,0.00024523,2]
[311670406,1705305039172,-159.71,0.00024525,2]
[311670407,1705305039181,-150.0,0.00024525,2]
[311670408,1705305039190,-150.0,0.00024527,2]
[311670409,1705305039199,-150.0,0.00024527,2]
[311670410,1705305039208,-150.0,0.0002453,2]
[311670411,1705305039217,-215.31692488,0.00024537,2]
[311670412,1705305039226,-1500.0,0.00024547,2]
[311670413,1705305039235,-1500.0,0.0002455,2]
[311670414,1705305039244,-150.0,0.00024552,2]
[311670415,1705305039253,-754.67516996,0.00024552,2]
[311670416,1705305039262,-150.0,0.00024557,2]
[311670417,1705305039271,-1405.00353093,0.00024557,2]
[311670418,1705305039280,-312.64251927,0.00024558,2]
[311670419,1705305039289,-150.0,0.00024559,2]
[311670420,1705305039297,-1500.0,0.00024562,2]
[311670421,1705305039306,-150.0,0.00024566,2]
[311670422,1705305039315,-150.0,0.0002457,2]
[311670423,1705305039325,-150.0,0.00024575,2]
[311670424,1705305039334,-150.0,0.00024575,2]
[311670425,1705305039342,-150.0,0.00024576,2]
[311670426,1705305039351,-150.0,0.00024578,2]
[311670427,1705305039360,-150.0,0.00024578,2]
[311670428,1705305039369,-150.0,0.00024578,2]
[311670429,1705305039378,-150.0,0.00024579,2]
[311670430,1705305039387,-150.0,0.00024583,2]
[311670431,1705305039396,-150.0,0.00024583,2]
[311670432,1705305039405,-150.0,0.00024587,2]
[311670433,1705305039414,-1500.0,0.00024587,2]
[311670434,1705305039422,-150.0,0.00024589,2]
[311670435,1705305039432,-150.0,0.0002459,2]
[311670436,1705305039440,-300.0,0.00024594,2]
[311670437,1705305039450,-150.0,0.00024598,2]
[311670438,1705305039459,-150.0,0.000246,2]
[311670439,1705305039468,-150.0,0.00024602,2]
[311670440,1705305039477,-150.0,0.00024604,2]
[311670441,1705305039486,-150.0,0.00024609,2]
[311670442,1705305039495,-270.64578377,0.00024609,2]
[311670443,1705305039504,-150.0,0.00024616,2]
[311670444,1705305039513,-150.0,0.0002462,2]
[311670445,1705305039522,-150.0,0.00024621,2]
[311670446,1705305039531,-150.0,0.00024621,2]
[311670447,1705305039540,-150.0,0.00024621,2]
[311670448,1705305039549,-1500.0,0.00024624,2]
[311670449,1705305039558,-150.0,0.00024624,2]
[311670450,1705305039568,-150.0,0.00024625,2]
[311670451,1705305039581,-300.0,0.00024631,2]
[311670452,1705305039590,-150.0,0.00024639,2]
[311670453,1705305039599,-150.0,0.00024643,2]
[311670454,1705305039608,-172.514,0.00024648,2]
[311670455,1705305039617,-235.0,0.00024648,2]
[311670456,1705305039626,-19692.0,0.00024648,2]
[311670457,1705305039635,-2272.0,0.00024648,2]
[311670458,1705305039644,-250.0,0.00024648,2]
[311670459,1705305039654,-1398.095,0.00024648,2]
[311670460,1705305039663,-150.0,0.00024648,2]
[311670461,1705305039672,-150.258,0.00024648,2]
[311670463,1705305039681,-162.678,0.00024648,2]
[311670464,1705305039690,-2903.0,0.00024648,2]
[311670466,1705305039699,-200.113,0.00024648,2]
[311670468,1705305039709,-150.0,0.00024648,2]
[311670469,1705305039720,-150.0,0.00024648,2]
[311670470,1705305039730,-300.0,0.0002465,2]
[311670471,1705305039741,-300.0,0.00024652,2]
[311670472,1705305039751,-150.0,0.00024652,2]
[311670473,1705305039763,-150.0,0.00024654,2]
[311670474,1705305039772,-250.0,0.00024658,2]
[311670475,1705305039781,-150.0,0.00024663,2]
[311670476,1705305039790,-150.0,0.00024664,2]
[311670478,1705305039800,-150.0,0.00024665,2]
[311670480,1705305039810,-150.0,0.00024666,2]
[311670482,1705305039819,-156.01,0.00024669,2]
[311670483,1705305039829,-150.0,0.00024675,2]
[311670484,1705305039839,-150.0,0.00024677,2]
[311670485,1705305039849,-150.0,0.00024686,2]
[311670486,1705305039859,-150.0,0.0002469,2]
[311670487,1705305039869,-151.70631307,0.00024692,2]
[311670488,1705305039878,-1500.0,0.00024694,2]
[311670489,1705305039888,-1500.0,0.000247,2]
[311670490,1705305039897,-500.0,0.000247,2]
[311670491,1705305039907,-1500.0,0.00024704,2]
[311670492,1705305039916,-150.0,0.00024705,2]
[311670493,1705305039926,-1500.0,0.00024706,2]
[311670494,1705305039936,-150.0,0.00024707,2]
[311670495,1705305039946,-150.0,0.00024708,2]
[311670496,1705305039955,-150.0,0.00024714,2]
[311670497,1705305039964,-150.0,0.00024719,2]
[311670498,1705305039974,-171.68272656,0.00024746,2]
[311670499,1705305039983,-151.40115,0.00024748,2]
[311670500,1705305039992,-151.40115,0.00024748,2]
[311670501,1705305040001,-151.40115,0.00024748,2]
[311670502,1705305040011,-151.40115,0.00024748,2]
[311670503,1705305040020,-151.40115,0.00024748,2]
[311670504,1705305040029,-151.40115,0.00024748,2]
[311670505,1705305040039,-151.40115,0.00024748,2]
[311670506,1705305040048,-151.40115,0.00024748,2]
[311670507,1705305040056,-183.40115,0.00024748,2]
[311670508,1705305040066,-777.40115,0.00024848,2]
[311670509,1705305040075,-777.40115,0.00024848,2]
[311670510,1705305040085,-777.40115,0.00024848,2]
[311670511,1705305040094,-777.40115,0.00024848,2]
[311670512,1705305040104,-777.40115,0.00024848,2]
[311670513,1705305040113,-777.40115,0.00024848,2]
[311670514,1705305040122,-777.40115,0.00024848,2]
[311670515,1705305040131,-777.40115,0.00024848,2]
[311670516,1705305040140,-777.40115,0.00024848,2]
[311670517,1705305040149,-777.40115,0.00024848,2]
[311670518,1705305040159,-777.40115,0.00024848,2]
[311670519,1705305040168,-777.40115,0.00024848,2]
[311670520,1705305040178,-777.40115,0.00024848,2]
[311670521,1705305040187,-777.40115,0.00024848,2]
[311670522,1705305040196,-777.40115,0.00024848,2]
[311670523,1705305040205,-777.40115,0.00024848,2]
[311670524,1705305040214,-777.40115,0.00024848,2]
[311670525,1705305040223,-777.40115,0.00024848,2]
[311670526,1705305040232,-777.40115,0.00024848,2]
[311670527,1705305040241,-777.40115,0.00024848,2]
[311670528,1705305040251,-777.40115,0.00024848,2]
[311670529,1705305040260,-777.40115,0.00024848,2]
[311670530,1705305040269,-777.40115,0.00024848,2]
[311670531,1705305040278,-777.40115,0.00024848,2]
[311670532,1705305040287,-202.0,0.00024874,6]
[311670533,1705305040296,-207.1041,0.00024899,2]
[311670534,1705305040305,-2000.0,0.00024899,3]
[311670535,1705305040314,-16112.8408,0.000249,2]
[311670536,1705305040323,-181.83716276,0.000249,2]
[311670537,1705305040332,-21100.96382259,0.000249,2]
[311670538,1705305040342,-5000.0,0.000249,2]
[311670539,1705305040351,-211.33175608,0.000249,2]
[311670540,1705305040361,-283.28883963,0.000249,2]
[311670541,1705305040371,-3079.00658782,0.000249,2]
[311670542,1705305040382,-892.11629978,0.000249,2]
[311670543,1705305040393,-333.36964197,0.000249,2]
[311670544,1705305040409,-1051.19657222,0.000249,2]
[311670545,1705305040418,-17497.41428488,0.000249,2]
[311670546,1705305040428,-394.5,0.00024933,2]
[311670547,1705305040438,-418.16,0.00024934,2]
[311670548,1705305040448,-1269.0,0.00024948,2]
[311670549,1705305040457,-20151.0,0.00024986,2]
[311670550,1705305040466,-185.79217394,0.0002499,2]
[311670551,1705305040477,-156.01,0.00024994,2]
[311670552,1705305040487,-209.38155424,0.00024996,2]
[311670553,1705305040497,-238.63,0.00024996,2]
[311670554,1705305040506,-2478.6934936,0.00024998,2]
[311670555,1705305040516,-84147.78249229,0.00024998,2]
[311670556,1705305040526,-3500.60888399,0.00024998,2]
[311670557,1705305040535,-500.0,0.00024999,4]
[311670558,1705305040545,-197.93356751,0.00024999,4]
[311670559,1705305040554,-500.0,0.00024999,4]
[311670560,1705305040564,-500.0,0.00024999,4]
[311670561,1705305040574,-500.0,0.00024999,4]
[311670562,1705305040587,-500.0,0.00024999,4]
[311670563,1705305040597,-308.46344508,0.00024999,4]
[311670564,1705305040607,-433.41626804,0.00024999,4]
[311670565,1705305040618,-500.0,0.00024999,4]
[311670566,1705305040628,-470.26349625,0.00024999,4]
[311670567,1705305040638,-202.11586126,0.00024999,4]
[311670568,1705305040649,-285.99271185,0.00024999,4]
[311670569,1705305040658,-675217.77873124,0.00025,2]
[311670570,1705305040674,-8080.84366852,0.00025,2]
[311670571,1705305040688,-11000.0,0.00025,2]
[311670572,1705305040701,-4500.0,0.00025,2]
[311670573,1705305040713,-360.17460302,0.00025,2]
[311670574,1705305040724,-3807.05788132,0.00025,2]
[311670581,1705305041307,-855.30664726,0.00025,2]
[311670582,1705305041321,-250.5,0.00025,2]
[311670583,1705305041341,-22172.38829488,0.00025,2]
[311670584,1705305041353,-555.900003,0.00025,2]
[311670585,1705305041366,-287.27274001,0.00025,2]
[311670586,1705305041386,-12475.1015872,0.00025,2]
[311670587,1705305041399,-4382.23209643,0.00025,2]
[311670588,1705305041413,-1104.43424814,0.00025,2]
[311670589,1705305041647,-145216.05010264,0.00025,2]
[311670590,1705305041674,-9199.28140038,0.00025,2]
[311670591,1705305041687,-17891.5678241,0.00025,2]
[311670592,1705305041700,-3619.35902703,0.00025,2]
[311670593,1705305041726,-824.1117,0.00025,2]
[311670594,1705305041797,-5610.39032302,0.00025,2]
[311670595,1705305041827,-700.24778108,0.00025,2]
[311670613,1705305042434,-276.57093658,0.00025,2]
[311670615,1705305042447,-19579.12438414,0.00025,2]
[311670618,1705305042494,-623.69508763,0.00025,2]
[311670619,1705305042505,-33834.45552623,0.00025,2]
[311670620,1705305042552,-323.78429081,0.00025,2]
[311670621,1705305042564,-10445.25215461,0.00025,2]
[311670622,1705305042611,-9440.13693686,0.00025,2]
[311670623,1705305042667,-10975.39934671,0.00025,2]
[311670624,1705305042730,-198747.44465337,0.00025,2]
[311670625,1705305042740,-197540.16885645,0.00025,2]
[311670626,1705305042753,-307904.70573042,0.00025,2]
[311670627,1705305042762,-20000.0,0.00025,2]
[311670628,1705305042772,-1350.0,0.00025,3]
[311670629,1705305042783,-5000.0,0.00025,2]
[311670630,1705305042793,-1405.00353093,0.00025078,2]
[311670631,1705305042803,-754.67516992,0.00025179,2]
[311670632,1705305042813,-159.18,0.00025241,2]
[311670633,1705305042824,-1405.00353093,0.00025272,2]
[311670634,1705305042833,-21100.96382251,0.00025317,2]
[311670635,1705305042844,-255.73,0.0002536,2]
[311670636,1705305042854,-1000.0,0.0002542,3]
[311670637,1705305042864,-1000.0,0.0002542,3]
[311670638,1705305042874,-1000.0,0.0002542,3]
[311670639,1705305042884,-731.19326951,0.0002542,3]
[311670640,1705305042894,-520.76512349,0.0002542,3]
[311670641,1705305042904,-1000.0,0.0002542,3]
[311670642,1705305042914,-1000.0,0.0002542,3]
[311670643,1705305042924,-1239.21140823,0.0002542,3]
[311670644,1705305042934,-474.57432,0.0002542,3]
[311670645,1705305042944,-233.19053088,0.0002542,3]
[311670646,1705305042955,-205.00691198,0.0002542,3]
[311670647,1705305042965,-1000.0,0.0002542,3]
[311670648,1705305042976,-1000.0,0.0002542,3]
[311670649,1705305042986,-5150.39533669,0.0002542,3]
[311670650,1705305042996,-1000.0,0.0002542,3]
[311670651,1705305043006,-278.73021527,0.0002542,3]
[311670652,1705305043016,-1000.0,0.0002542,3]
[311670653,1705305043027,-266.07363219,0.0002542,3]
[311670654,1705305043037,-3451.41429343,0.0002542,3]
[311670655,1705305043048,-383.81796632,0.0002542,3]
[311670656,1705305043059,-312.58803703,0.0002542,3]
[311670657,1705305043069,-343.95252903,0.0002542,3]
[311670658,1705305043081,-809.93,0.0002544,2]
[311670659,1705305043091,-1896.71,0.0002544,2]
[311670660,1705305043102,-174.24,0.00025496,2]
[311670661,1705305043113,-20000.0,0.000255,2]
[311670662,1705305043124,-1000.0,0.000256,2]
[311670663,1705305043134,-1000.0,0.000256,2]
[311670664,1705305043145,-1000.0,0.000256,2]
[311670665,1705305043436,-1405.00353093,0.00025635,2]
[311670666,1705305043475,-21100.96382251,0.00025734,2]
[311670667,1705305043485,-754.67516992,0.00025806,2]
[311670668,1705305043495,-50000.0,0.00025851,2]
[311670669,1705305043505,-150.76,0.00025853,2]
[311670670,1705305043514,-553.39,0.00025882,2]
[311670671,1705305043523,-394.5,0.00025911,2]
[311670672,1705305043533,-50000.0,0.0002596,2]
[311670673,1705305043543,-16000.0,0.00026,2]
[311670674,1705305043552,-3330.949005,0.00026,2]
[311670675,1705305043562,-897.52,0.00026052,2]
[311670676,1705305043572,-150.0,0.00026079,2]
[311670677,1705305043583,-154.69,0.00026085,2]
[311670678,1705305043593,-21100.96382251,0.00026152,2]
[311670679,1705305043603,-709.59,0.00026169,2]
[311670680,1705305043613,-159.18,0.00026281,2]
[311670681,1705305043623,-300.0,0.00026398,2]
[311670682,1705305043633,-754.67516992,0.00026433,3]
[311670683,1705305043643,-10568.54777571,0.00026511,2]
[311670684,1705305043653,-21100.96382251,0.00026569,2]
[311670685,1705305043662,-9134.55,0.00026575,2]
[311670686,1705305043671,-1000.0,0.000266,2]
[311670687,1705305043681,-1000.0,0.000266,2]
[311670688,1705305043690,-1014.57332157,0.00026734,2]
[311670689,1705305043699,-3079.00658782,0.00026784,2]
[311670690,1705305043709,-892.11629978,0.00026784,2]
[311670691,1705305043718,-333.36964195,0.00026784,2]
[311670692,1705305043727,-1051.1965722,0.00026784,2]
[311670693,1705305043737,-17497.41428488,0.00026784,2]
[311670694,1705305043746,-197.45340343,0.00026835,4]
[311670695,1705305043756,-500.0,0.00026863,2]
[311670696,1705305043766,-394.5,0.0002689,2]
[311670697,1705305043776,-13463.63857416,0.00026901,2]
[311670698,1705305043785,-200.0,0.0002698,2]
[311670699,1705305043795,-21100.96382251,0.00026986,2]
[311670700,1705305043805,-30417.37560421,0.00027,2]
[311670701,1705305043815,-20000.0,0.00027,2]
[311670702,1705305043825,-1400.0,0.00027,3]
[311670703,1705305043834,-4000.0,0.00027,2]
[311670704,1705305043843,-754.67516992,0.0002706,3]
[311670705,1705305043853,-500.0,0.00027122,10]
[311670706,1705305043863,-500.0,0.00027122,2]
[311670707,1705305043873,-200.0,0.00027176,2]
[311670708,1705305043882,-800.0,0.00027176,2]
[311670709,1705305043891,-500.0,0.00027177,2]
[311670710,1705305043901,-800.0,0.00027177,2]
[311670711,1705305043910,-800.0,0.00027177,2]
[311670712,1705305043919,-500.0,0.00027177,2]
[311670713,1705305043928,-500.0,0.00027177,2]
[311670714,1705305043938,-500.0,0.00027177,2]
[311670715,1705305043947,-500.0,0.00027177,2]
[311670716,1705305043956,-500.0,0.00027177,2]
[311670717,1705305043966,-500.0,0.00027177,2]
[311670718,1705305043975,-500.0,0.00027177,2]
[311670719,1705305043984,-516.50463406,0.00027246,2]
[311670720,1705305043994,-401.38,0.00027288,2]
[311670721,1705305044003,-475.16,0.00027288,2]
[311670722,1705305044012,-250.0,0.00027297,2]
[311670723,1705305044022,-20000.0,0.00027297,2]
[311670724,1705305044031,-52546.03668265,0.00027297,2]
[311670725,1705305044044,-3008.96331735,0.00027297,2]
[311670726,1705305044054,-480.92631873,0.00027297,13]